fUST/lending_fUST_20251119
["ID","MTS","AMOUNT","RATE_DAILY","PERIOD"]
[394357647,1763487039046,-500.0,0.00017999,2]
[394357648,1763487039056,-500.0,0.00017999,2]
[394357649,1763487039066,-500.0,0.00017999,2]
[394357650,1763487039076,-500.0,0.00017999,2]
[394357651,1763487039085,-500.0,0.00017999,2]
[394357652,1763487039095,-500.0,0.00017999,2]
[394357653,1763487039104,-500.0,0.00017999,2]
[394357654,1763487039117,-500.0,0.00017999,2]
[394357655,1763487039126,-500.0,0.00017999,2]
[394357656,1763487039136,-185.36918485,0.00017999,2]
[394357657,1763487039145,-500.0,0.00017999,2]
[394357658,1763487039154,-500.0,0.00017999,2]
[394357659,1763487039163,-500.0,0.00017999,2]
[394357660,1763487039173,-500.0,0.00017999,2]
[394357661,1763487039183,-41719.51650407,0.00018,2]
[394357662,1763487039192,-500.0,0.00018719,2]
[394357663,1763487039203,-209.59424987,0.00018719,2]
[394357664,1763487039212,-500.0,0.00018719,2]
[394357665,1763487039222,-506.30280005,0.00018882,2]
[394357666,1763487039231,-500.0,0.00018882,2]
[394357667,1763487039240,-1165.10438486,0.00018896,2]
[394357668,1763487039249,-500.0,0.00018973,2]
[394357669,1763487039259,-500.0,0.00018973,2]
[394357670,1763487039269,-500.0,0.00018973,2]
[394357671,1763487039279,-501.17308663,0.00018973,2]
[394357672,1763487039288,-216.0922412,0.00018989,2]
[394357673,1763487039298,-10033.3461561,0.00018989,2]
[394357674,1763487039307,-1000.0,0.00019521,2]
[394357675,1763487039316,-477.0,0.00019581,2]
[394357676,1763487039325,-420.0,0.0001961,2]
[394357677,1763487039334,-601.0,0.00019705,2]
[394357678,1763487039344,-177.0,0.00019896,2]
[394357679,1763487039353,-1095.87072604,0.00020068,2]
[394357680,1763487039362,-632.21512378,0.00020138,2]
[394357681,1763487039371,-211.51815162,0.00020557,2]
[394357682,1763487039380,-2439.60168985,0.00021269,2]
[394357683,1763487039389,-587.0,0.00021397,2]
[394357684,1763487039397,-204.0,0.00021896,2]
[394357685,1763487039406,-295.87,0.00022,7]
[394357686,1763487039415,-1231.78188148,0.00022273,2]
[394357687,1763487039424,-217.3732732,0.00022716,4]
[394357688,1763487039434,-366.0,0.00023347,2]
[394357689,1763487039443,-1436.75857858,0.00023445,2]
[394357690,1763487039453,-231.0,0.00023896,2]
[394357691,1763487039464,-253.54563151,0.00023911,4]
[394357692,1763487039473,-152.14331167,0.00024136,4]
[394357693,1763487039482,-1172.6642734,0.00024435,2]
[394357694,1763487039492,-408.1297332,0.00024435,2]
[394357695,1763487039501,-32823.48209096,0.00024596,2]
[394357696,1763487039511,-372.01,0.000246,14]
[394357697,1763487039520,-7699.2,0.000246,2]
[394357698,1763487039529,-151.0,0.00025,9]
[394357699,1763487039539,-258.0,0.00025896,2]
[394357700,1763487039548,-845.22653386,0.00026344,2]
[394357701,1763487039557,-1317.453448,0.00026957,2]
[394357702,1763487039567,-151.0,0.000273,19]
[394357703,1763487039576,-285.0,0.00027896,2]
[394357704,1763487039586,-501.78056702,0.0002827,2]
[394357705,1763487039596,-150.0,0.00028299,2]
[394357706,1763487039606,-246.47954324,0.00028504,2]
[394357707,1763487039615,-246.47954324,0.00028627,9]
[394357708,1763487039624,-246.47954324,0.00028751,17]
[394357709,1763487039634,-295.87,0.000288,7]
[394357710,1763487039643,-246.47954324,0.00028874,25]
[394357711,1763487039652,-246.47954324,0.00028998,32]
[394357712,1763487039661,-246.47954324,0.00029121,40]
[394357713,1763487039670,-246.47954322,0.00029127,30]
[394357714,1763487039679,-246.47954324,0.00029244,48]
[394357715,1763487039689,-246.47954324,0.00029368,56]
[394357716,1763487039700,-372.01,0.000294,14]
[394357717,1763487039709,-246.47954324,0.00029491,63]
[394357718,1763487039718,-151.0,0.000296,14]
[394357719,1763487039732,-246.47954324,0.00029615,71]
[394357720,1763487039742,-150.0,0.00029644,2]
[394357721,1763487039751,-246.47954324,0.00029738,79]
[394357722,1763487039761,-7699.2,0.000298,2]
[394357723,1763487039771,-246.47954324,0.00029861,86]
[394357724,1763487039781,-246.47954324,0.00029985,94]
[394357725,1763487039790,-93808.92127559,0.0003,30]
[394357726,1763487039801,-322.98123277,0.00030031,2]
[394357727,1763487039810,-246.47954324,0.00030108,102]
[394357728,1763487039819,-163.725662,0.00030137,2]
[394357729,1763487039828,-151.13690597,0.00030284,10]
[394357730,1763487039838,-868.62359971,0.00030632,4]
[394357731,1763487039848,-150.0,0.00030991,2]
[394357733,1763487039857,-253.96191722,0.00031006,2]
[394357734,1763487039866,-256.13693702,0.00031006,2]
[394357736,1763487039876,-187.48862368,0.00031006,2]
[394357738,1763487039885,-151.0,0.000319,12]
[394357739,1763487039895,-1013.16834353,0.00032244,4]
[394357740,1763487039911,-179.868,0.00032666,33]
[394357741,1763487039921,-1948.51,0.00032877,10]
[394357742,1763487039930,-1623.76,0.00032877,10]
[394357743,1763487039939,-1353.14,0.00032877,10]
[394357744,1763487039949,-1603.39,0.00032877,10]
[394357745,1763487039959,-151.0,0.000342,14]
[394357746,1763487039969,-295.87,0.000348,7]
[394357747,1763487039978,-196.0,0.00035,120]
[394357748,1763487039987,-372.01,0.000353,30]
[394357749,1763487039996,-168.0,0.00036264,2]
[394357750,1763487040005,-151.0,0.000365,12]
[394357751,1763487040015,-400.77541225,0.00036588,2]
[394357752,1763487040024,-168.0,0.00036609,2]
[394357753,1763487040033,-168.0,0.00036621,2]
[394357754,1763487040043,-7699.2,0.000367,2]
[394357755,1763487040052,-168.0,0.0003676,2]
[394357756,1763487040138,-912.36858853,0.0003686,2]
[394357757,1763487040149,-168.0,0.00036938,2]
[394357758,1763487040158,-168.0,0.00036964,2]
[394357759,1763487040168,-168.0,0.00037132,2]
[394357760,1763487040177,-168.0,0.00037142,2]
[394357762,1763487040186,-168.0,0.00037671,2]
[394357763,1763487040197,-168.0,0.00037833,2]
[394357764,1763487040207,-555.81629099,0.00037978,5]
[394357765,1763487040216,-500.0,0.00037978,5]
[394357766,1763487040227,-500.0,0.00037978,5]
[394357767,1763487040236,-168.0,0.00038014,2]
[394357768,1763487040246,-168.0,0.00038045,2]
[394357769,1763487040256,-168.0,0.00038311,7]
[394357770,1763487040266,-168.0,0.00038335,2]
[394357771,1763487040275,-163.725662,0.00038356,2]
[394357772,1763487040286,-168.0,0.000385,120]
[394357773,1763487040296,-1000.0,0.00038526,5]
[394357774,1763487040305,-1017.04213383,0.00038526,5]
[394357775,1763487040314,-253.96191722,0.00038605,2]
[394357776,1763487040323,-168.0,0.00038619,2]
[394357777,1763487040333,-151.0,0.000388,19]
[394357778,1763487040342,-372.01,0.000388,30]
[394357779,1763487040351,-629.0,0.00038854,2]
[394357780,1763487040360,-882.12,0.00038854,2]
[394357781,1763487040369,-413.0,0.00038854,2]
[394357782,1763487040378,-502.71372122,0.00039074,5]
[394357783,1763487040388,-168.0,0.00039246,2]
[394357784,1763487040397,-504.94382083,0.00039263,5]
[394357785,1763487040406,-501.11157361,0.00039263,5]
[394357786,1763487040416,-295.87,0.000393,7]
[394357787,1763487040426,-168.0,0.00039592,2]
[394357788,1763487040435,-168.0,0.00039597,2]
[394357789,1763487040444,-168.0,0.00039648,2]
[394357790,1763487040454,-168.0,0.00039676,2]
[394357791,1763487040465,-7699.2,0.000397,2]
[394357792,1763487040480,-2502.53904556,0.000398,120]
[394357793,1763487040490,-1004.86308962,0.00039836,14]
[394357794,1763487040499,-151.0,0.00039836,14]
[394357795,1763487040508,-150.0,0.00039897,2]
[394357796,1763487040518,-250.0,0.00039897,10]
[394357797,1763487040527,-250.0,0.00039897,10]
[394357798,1763487040536,-250.0,0.00039897,10]
[394357799,1763487040545,-310.737253,0.00039897,10]
[394357800,1763487040555,-7386.05264068,0.00039897,7]
[394357801,1763487040602,-1377.689327,0.00039897,7]
[394357802,1763487040651,-18651.25954856,0.00039897,7]
[394357803,1763487040663,-46756.5,0.00039897,7]
[394357804,1763487040675,-253.3680624,0.00039897,7]
[394358077,1763487046037,-3819.14115196,0.00039897,7]
[394358079,1763487046048,-3249.99999995,0.00039897,7]
[394358081,1763487046060,-3195.57931145,0.00039897,7]
[394358084,1763487046071,-4420.42477335,0.00039897,7]
[394358086,1763487046082,-4821.60298698,0.00039897,7]
[394358115,1763487046460,-14652.01132879,0.00039897,7]
[394358122,1763487046518,-2272.23679476,0.00039897,7]
[394358124,1763487046530,-18194.53577382,0.00039897,7]
[394358126,1763487046539,-2671.8465321,0.00039897,20]
[394358129,1763487046551,-330.0,0.00039897,20]
[394358146,1763487046752,-1998.1534679,0.00039897,20]
[394358148,1763487046763,-601.7230166,0.00039897,20]
[394358150,1763487046775,-680.90757339,0.00039897,20]
[394358152,1763487097313,202.00255695,0.00015777,2]
[394358154,1763487118717,397.578567,0.00013699,2]
[394358197,1763487297219,307.56849658,0.00015777,2]
[394358214,1763487425243,3449.0657067,0.00016997,2]
[394358215,1763487440372,5000.0,0.00017797,2]
[394358216,1763487448319,1550.9442933,0.00017797,2]
[394358217,1763487448463,399.34886592,0.00017797,2]
[394358218,1763487464132,5000.0,0.00017807,2]
[394358219,1763487469201,-150.0,0.00017907,2]
[394358220,1763487474888,3017.4710242,0.00017897,2]
[394358221,1763487481270,238.74,0.00015485,2]
[394358222,1763487487513,5000.0,0.00017986,2]
[394358223,1763487510307,5000.0,0.00017986,2]
[394358226,1763487533206,0.01,0.00017986,2]
[394358227,1763487533229,4999.99,0.00017986,2]
[394358228,1763487557715,5000.0,0.00017986,2]
[394358229,1763487580065,0.02,0.00017986,2]
[394358230,1763487580087,4999.98,0.00017986,2]
[394358231,1763487603176,5000.0,0.00017986,2]
[394358232,1763487624675,4276.0,0.00039793,20]
[394358233,1763487626664,0.03,0.00017986,2]
[394358234,1763487626687,4999.97,0.00017986,2]
[394358235,1763487649441,5000.0,0.00017986,2]
[394358236,1763487672325,0.04,0.00017986,2]
[394358237,1763487672349,4999.96,0.00017986,2]
[394358238,1763487695325,5000.0,0.00017986,2]
[394358239,1763487718220,0.05,0.00017986,2]
[394358240,1763487718243,4999.95,0.00017986,2]
[394358241,1763487740583,5000.0,0.00017986,2]
[394358242,1763487763486,0.06,0.00017986,2]
[394358243,1763487763509,4999.94,0.00017986,2]
[394358245,1763487785927,5000.0,0.00017986,2]
[394358246,1763487809320,5000.0,0.00017977,2]
[394358247,1763487832921,5000.0,0.00017977,2]
[394358249,1763487855749,0.01,0.00017977,2]
[394358250,1763487887351,1000.0,0.0001731,2]
[394358251,1763487914201,926.54378333,0.00017806,2]
[394358253,1763487942326,-4999.99,0.00017977,2]
[394358254,1763487944520,0.03,0.00017806,2]
[394358255,1763487944543,4999.97,0.00017806,2]
[394358256,1763487966795,5000.0,0.00017977,2]
[394358257,1763487975663,0.04,0.00017977,2]
[394358258,1763487975685,4728.1272781,0.00017977,2]
[394358259,1763487990941,5000.0,0.00017977,2]
[394358260,1763487998856,271.8327219,0.00017977,2]
[394358261,1763488014628,0.05,0.00017977,2]
[394358262,1763488014652,4999.95,0.00017977,2]
[394358263,1763488038021,5000.0,0.00017977,2]
[394358264,1763488060555,0.06,0.00017977,2]
[394358265,1763488060577,4999.94,0.00017977,2]
[394358266,1763488084952,5000.0,0.00017977,2]
[394358267,1763488100464,0.07,0.00017898,2]
[394358268,1763488100488,2640.21714614,0.00017898,2]
[394358269,1763488107853,5000.0,0.00017977,2]
[394358270,1763488130249,2359.79285386,0.00017977,2]
[394358271,1763488137205,176.50586096,0.00017886,3]
[394358273,1763488195221,246.12859895,0.00015777,2]
[394358274,1763488203918,4536.5368133,0.00016995,2]
[394358328,1763488232347,-2640.20714614,0.00017977,2]
[394358330,1763488232357,-998.3503,0.00017986,2]
[394358332,1763488232367,-150.0,0.00017989,2]
[394358333,1763488232377,-1200.0,0.00017995,2]
[394358335,1763488232386,-300.0,0.00017995,2]
[394358337,1763488232396,-300.0,0.00017995,2]
[394358338,1763488232406,-1200.0,0.00017995,2]
[394358340,1763488232416,-300.0,0.00017995,2]
[394358342,1763488232425,-500.0,0.00017996,2]
[394358344,1763488232434,-500.0,0.00017996,2]
[394358347,1763488232444,-500.0,0.00017996,2]
[394358351,1763488232454,-500.0,0.00017996,2]
[394358353,1763488232462,-544.78720686,0.00017997,2]
[394358355,1763488232472,-500.0,0.00017997,2]
[394358357,1763488232481,-500.0,0.00017997,2]
[394358361,1763488232491,-500.0,0.00017997,2]
[394358363,1763488232500,-500.0,0.00017997,2]
[394358365,1763488232509,-404.9741709,0.00017997,2]
[394358367,1763488232519,-500.0,0.00017997,2]
[394358369,1763488232528,-500.0,0.00017997,2]
[394358371,1763488232537,-500.0,0.00017997,2]
[394358373,1763488232547,-500.0,0.00017997,2]
[394358375,1763488232556,-500.0,0.00017997,2]
[394358377,1763488232565,-500.0,0.00017997,2]
[394358379,1763488232575,-500.0,0.00017997,2]
[394358380,1763488232584,-500.0,0.00017997,2]
[394358382,1763488232593,-500.0,0.00017997,2]
[394358384,1763488232602,-500.0,0.00017997,2]
[394358386,1763488232612,-500.0,0.00017997,2]
[394358388,1763488232621,-500.0,0.00017997,2]
[394358390,1763488232630,-500.0,0.00017997,2]
[394358392,1763488232639,-186.24481626,0.00017997,2]
[394358394,1763488232650,-500.0,0.00017997,2]
[394358396,1763488232659,-500.0,0.00017997,2]
[394358398,1763488232668,-500.0,0.00017997,2]
[394358400,1763488232677,-591.85524082,0.00017997,2]
[394358401,1763488232686,-500.0,0.00017997,2]
[394358403,1763488232696,-500.0,0.00017997,2]
[394358405,1763488232706,-500.0,0.00017997,2]
[394358407,1763488232715,-500.0,0.00017997,2]
[394358409,1763488232724,-500.0,0.00017997,2]
[394358411,1763488232734,-500.0,0.00017997,2]
[394358413,1763488232744,-411.62454966,0.00017997,2]
[394358415,1763488232754,-248.38042458,0.00017997,2]
[394358417,1763488232764,-500.0,0.00017997,2]
[394358419,1763488232774,-500.0,0.00017997,2]
[394358421,1763488232784,-500.0,0.00017997,2]
[394358423,1763488232793,-500.0,0.00017997,2]
[394358425,1763488232803,-500.0,0.00017997,2]
[394358427,1763488232813,-500.0,0.00017997,2]
[394358428,1763488232822,-500.0,0.00017997,2]
[394358430,1763488232832,-500.0,0.00017997,2]
[394358432,1763488232841,-500.0,0.00017997,2]
[394358433,1763488232850,-500.0,0.00017997,2]
[394358435,1763488232859,-500.0,0.00017997,2]
[394358436,1763488232869,-500.0,0.00017997,2]
[394358438,1763488232879,-500.0,0.00017997,2]
[394358440,1763488232888,-500.0,0.00017997,2]
[394358442,1763488232902,-500.0,0.00017997,2]
[394358443,1763488232912,-500.0,0.00017997,2]
[394358445,1763488232922,-500.0,0.00017997,2]
[394358447,1763488232931,-500.0,0.00017997,2]
[394358449,1763488232941,-500.0,0.00017997,2]
[394358450,1763488232950,-500.0,0.00017997,2]
[394358452,1763488232961,-500.0,0.00017997,2]
[394358454,1763488232971,-165.98365007,0.00017997,2]
[394358456,1763488232980,-500.0,0.00017997,2]
[394358458,1763488232990,-500.0,0.00017997,2]
[394358459,1763488233000,-500.0,0.00017997,2]
[394358461,1763488233009,-419.41307773,0.00017997,2]
[394358462,1763488233019,-500.0,0.00017997,2]
[394358463,1763488233028,-500.0,0.00017997,2]
[394358464,1763488233038,-500.0,0.00017997,2]
[394358465,1763488233047,-500.0,0.00017997,2]
[394358466,1763488233056,-500.0,0.00017997,2]
[394358467,1763488233066,-500.0,0.00017997,2]
[394358468,1763488233076,-500.0,0.00017997,2]
[394358469,1763488233085,-500.0,0.00017997,2]
[394358470,1763488233096,-500.0,0.00017997,2]
[394358471,1763488233105,-500.0,0.00017997,2]
[394358472,1763488233114,-500.0,0.00017997,2]
[394358473,1763488233124,-500.0,0.00017997,2]
[394358474,1763488233133,-500.0,0.00017997,2]
[394358475,1763488233143,-500.0,0.00017997,2]
[394358476,1763488233154,-500.0,0.00017997,2]
[394358477,1763488233163,-582.63718477,0.00017997,2]
[394358478,1763488233177,-500.0,0.00017997,2]
[394358479,1763488233187,-500.0,0.00017997,2]
[394358480,1763488233197,-500.0,0.00017997,2]
[394358481,1763488233206,-500.0,0.00017997,2]
[394358482,1763488233218,-500.0,0.00017997,2]
[394358483,1763488233227,-500.0,0.00017997,2]
[394358484,1763488233237,-500.0,0.00017997,2]
[394358485,1763488233248,-500.0,0.00017997,2]
[394358486,1763488233258,-500.0,0.00017997,2]
[394358487,1763488233267,-500.0,0.00017997,2]
[394358488,1763488233277,-500.0,0.00017997,2]
[394358489,1763488233287,-500.0,0.00017997,2]
[394358490,1763488233296,-451.81713882,0.00017997,2]
[394358491,1763488233309,-48.18286118,0.00017997,2]
[394358492,1763488233318,-500.0,0.00017997,2]
[394358493,1763488233327,-325.46891986,0.00017997,2]
[394358494,1763488233513,-174.53108014,0.00017997,2]
[394358495,1763488233523,-500.0,0.00017997,2]
[394358496,1763488233532,-500.0,0.00017997,2]
[394358497,1763488233617,-500.0,0.00017997,2]
[394358498,1763488233628,-500.0,0.00017997,2]
[394358499,1763488233637,-500.0,0.00017997,2]
[394358500,1763488233647,-500.0,0.00017997,2]
[394358501,1763488233656,-403.84534213,0.00017997,2]
[394358534,1763488238256,-96.15465787,0.00017997,2]
[394358536,1763488238267,-460.97897511,0.00017997,2]
[394358538,1763488238279,-39.02102489,0.00017997,2]
[394358539,1763488238288,-357.86648865,0.00017997,2]
[394358541,1763488238299,-239.65608624,0.00017997,2]
[394358542,1763488238309,-51.64406876,0.00017997,2]
[394358543,1763488238320,-448.35593124,0.00017997,2]
[394358544,1763488238330,-500.0,0.00017997,2]
[394358545,1763488238339,-500.0,0.00017997,2]
[394358546,1763488238348,-500.0,0.00017997,2]
[394358547,1763488238358,-500.0,0.00017997,2]
[394358548,1763488238368,-500.0,0.00017997,2]
[394358549,1763488238378,-500.0,0.00017997,2]
[394358550,1763488238389,-500.0,0.00017997,2]
[394358551,1763488238399,-500.0,0.00017997,2]
[394358552,1763488238414,-371.14406876,0.00017997,2]
[394358553,1763488238428,-128.85593124,0.00017997,2]
[394358554,1763488238438,-500.0,0.00017997,2]
[394358555,1763488238450,-500.0,0.00017997,2]
[394358556,1763488238461,-500.0,0.00017997,2]
[394358557,1763488238473,-500.0,0.00017997,2]
[394358558,1763488238484,-500.0,0.00017997,2]
[394358559,1763488238494,-500.0,0.00017997,2]
[394358560,1763488238505,-500.0,0.00017997,2]
[394358561,1763488238515,-500.0,0.00017997,2]
[394358562,1763488238525,-500.0,0.00017997,2]
[394358563,1763488238535,-500.0,0.00017997,2]
[394358564,1763488238545,-500.0,0.00017997,2]
[394358565,1763488238556,-500.0,0.00017997,2]
[394358566,1763488238566,-500.0,0.00017997,2]
[394358567,1763488238578,-400.0,0.00017997,2]
[394358568,1763488238588,-500.0,0.00017997,2]
[394358569,1763488238598,-500.0,0.00017997,2]
[394358570,1763488238608,-500.0,0.00017997,2]
[394358571,1763488238618,-500.0,0.00017997,2]
[394358572,1763488238628,-500.0,0.00017997,2]
[394358573,1763488238637,-500.0,0.00017997,2]
[394358574,1763488238647,-500.0,0.00017997,2]
[394358575,1763488238672,-500.0,0.00017997,2]
[394358576,1763488238682,-500.0,0.00017997,2]
[394358577,1763488238693,-500.0,0.00017997,2]
[394358578,1763488238705,-500.0,0.00017997,2]
[394358579,1763488238715,-500.0,0.00017997,2]
[394358580,1763488238726,-500.0,0.00017997,2]
[394358581,1763488238738,-500.0,0.00017997,2]
[394358582,1763488238748,-500.0,0.00017997,2]
[394358583,1763488238759,-500.0,0.00017997,2]
[394358584,1763488238770,-500.0,0.00017997,2]
[394358585,1763488238781,-500.0,0.00017997,2]
[394358586,1763488238791,-499.99999999,0.00017997,2]
[394358587,1763488238800,-96.53263185,0.00017997,2]
[394358588,1763488238814,-338.84055212,0.00017997,2]
[394358589,1763488238826,-64.62681603,0.00017997,2]
[394358590,1763488238836,-500.0,0.00017997,2]
[394358591,1763488238847,-234.50019599,0.00017997,2]
[394358592,1763488238864,-265.49980401,0.00017997,2]
[394358593,1763488238875,-500.0,0.00017997,2]
[394358594,1763488238886,-500.0,0.00017997,2]
[394358595,1763488238897,-500.0,0.00017997,2]
[394358596,1763488238912,-500.0,0.00017997,2]
[394358597,1763488238922,-500.0,0.00017997,2]
[394358598,1763488238932,-500.0,0.00017997,2]
[394358599,1763488238943,-500.0,0.00017997,2]
[394358600,1763488238953,-500.0,0.00017997,2]
[394358601,1763488238963,-2354.45282073,0.00017997,2]
[394358602,1763488238976,-18379.04374046,0.00017997,2]
[394358603,1763488238994,-890.15205145,0.00017997,2]
[394358604,1763488239006,-281.00478041,0.00017997,2]
[394358605,1763488239288,5000.0,0.00017836,2]
[394358624,1763488240471,-28095.34660695,0.00017997,2]
[394358625,1763488240481,-500.0,0.00018271,2]
[394358627,1763488240490,-8364.47107236,0.00018539,2]
[394358628,1763488240500,-500.0,0.00018545,2]
[394358629,1763488240509,-500.0,0.00018552,2]
[394358630,1763488240518,-506.45381358,0.00018552,2]
[394358631,1763488240527,-500.0,0.00018552,2]
[394358632,1763488240536,-500.0,0.00018552,2]
[394358633,1763488240545,-500.0,0.00018552,2]
[394358634,1763488240554,-500.0,0.00018552,2]
[394358635,1763488240564,-515.06662059,0.00018609,2]
[394358636,1763488240573,-500.0,0.00018609,2]
[394358637,1763488240582,-500.0,0.00018609,2]
[394358638,1763488240592,-252.04121879,0.00018751,2]
[394358639,1763488240601,-790.7,0.00018764,2]
[394358640,1763488240610,-790.7,0.00018764,2]
[394358641,1763488240619,-162.30300803,0.00018764,2]
[394358642,1763488240628,-503.81513739,0.00018764,2]
[394358644,1763488240637,-500.0,0.00018773,2]
[394358645,1763488240646,-500.0,0.00018773,2]
[394358646,1763488240657,-500.0,0.00018819,2]
[394358647,1763488240666,-457.1025223,0.00018848,2]
[394358648,1763488240678,-250.86269329,0.00018848,2]
[394358649,1763488240688,-82.73478441,0.00018848,2]
[394358650,1763488240698,-790.7,0.00018848,2]
[394358651,1763488240707,-500.58691999,0.0001885,2]
[394358652,1763488240716,-350.85114549,0.0001885,2]
[394358653,1763488240726,-149.14885451,0.0001885,2]
[394358654,1763488240735,-280.27738861,0.00018872,2]
[394358670,1763488243876,-278.05843717,0.00018872,2]
[394358691,1763488246639,-232.36417422,0.00018872,2]
[394358701,1763488246737,-500.0,0.00018873,2]
[394358703,1763488246750,-647.60557133,0.00018873,2]
[394358705,1763488246760,-1247.35,0.00018957,3]
[394358707,1763488246770,-500.0,0.00018967,2]
[394358709,1763488246779,-1000.0,0.00018967,2]
[394358711,1763488246789,-1000.0,0.00018967,2]
[394358713,1763488246799,-1000.0,0.00018967,2]
[394358715,1763488246808,-1000.0,0.00018967,2]
[394358716,1763488246818,-1000.0,0.00018967,2]
[394358718,1763488246828,-500.0,0.00019093,2]
[394358720,1763488246838,-1000.0,0.000191,2]
[394358722,1763488246848,-1000.0,0.000191,2]
[394358724,1763488246858,-1000.0,0.000191,2]
[394358726,1763488246868,-1000.0,0.000191,2]
[394358728,1763488246878,-373.3008297,0.000191,2]
[394358730,1763488246887,-1000.0,0.00019157,2]
[394358732,1763488246897,-1000.0,0.00019157,2]
[394358734,1763488246907,-150.0,0.00019178,2]
[394358736,1763488246918,-695.82707343,0.00019223,2]
[394358738,1763488246928,-301.79765954,0.00019315,2]
[394358740,1763488246938,-1000.0,0.00019321,2]
[394358742,1763488246948,-1000.0,0.00019321,2]
[394358744,1763488246957,-790.7,0.00019346,2]
[394358746,1763488246967,-300.0,0.00019347,2]
[394358748,1763488246976,-300.0,0.00019347,2]
[394358750,1763488246986,-300.0,0.00019347,2]
[394358752,1763488246995,-300.0,0.00019347,2]
[394358753,1763488247004,-300.0,0.00019347,2]
[394358754,1763488247013,-300.0,0.00019347,2]
[394358755,1763488247023,-300.0,0.00019347,2]
[394358756,1763488247032,-300.0,0.00019347,2]
[394358757,1763488247042,-300.0,0.00019347,2]
[394358758,1763488247052,-300.0,0.00019347,2]
[394358759,1763488247061,-300.0,0.00019347,2]
[394358760,1763488247071,-300.0,0.00019347,2]
[394358761,1763488247081,-300.0,0.00019347,2]
[394358762,1763488247090,-300.0,0.00019347,2]
[394358763,1763488247099,-300.0,0.00019347,2]
[394358764,1763488247108,-500.0,0.00019367,2]
[394358765,1763488247117,-500.0,0.00019385,2]
[394358766,1763488247127,-504.71434881,0.00019385,2]
[394358767,1763488247137,-500.0,0.00019385,2]
[394358768,1763488247147,-500.0,0.00019385,2]
[394358769,1763488247156,-356.0,0.00019386,2]
[394358770,1763488247167,-1000.0,0.00019398,2]
[394358771,1763488247181,-1000.0,0.00019421,2]
[394358772,1763488247191,-1280.49976763,0.00019425,2]
[394358773,1763488247201,-420.0,0.00019635,2]
[394358774,1763488247210,-500.0,0.00019641,2]
[394358775,1763488247219,-195.62038484,0.00019648,2]
[394358776,1763488247228,-1500.0,0.00019648,2]
[394358777,1763488247237,-1436.70274058,0.00019648,2]
[394358778,1763488247246,-1500.0,0.00019648,2]
[394358779,1763488247256,-9.75640567,0.00019648,2]
[394358780,1763488247777,-272.29160628,0.00019648,2]
[394358781,1763488247790,-32.70839373,0.0001965,2]
[394358783,1763488262667,217.34458775,0.00017836,2]
[394358784,1763488265578,202.64442339,0.00015777,2]
[394358785,1763488268278,1433.7747605,0.00017736,2]
[394358787,1763488431791,-4782.65541225,0.00017836,2]
[394358788,1763488431821,-150.0,0.00017917,2]
[394358789,1763488432053,-1200.0,0.00017996,2]
[394358790,1763488432083,-300.0,0.00017996,2]
[394358791,1763488432112,-593.03,0.00017997,2]
[394358792,1763488432141,-593.03,0.00017997,2]